{"text_format":"3","workbook":"xlsx","n_sheets":7,"sheets":["pirmadienis","antradienis","trečiadienis","ketvirtadienis","penktadienis","šeštadienis","sekmadienis"],"not_rendered":{"defined_names":21},"read":"whole","date_system":"1900"}

{"sheet":"pirmadienis","index":0,"n_rows":10,"n_cols":13,"rows_kept":10,"merged":[[0,1,0,4],[1,2,1,4],[2,2,2,4]]}
[null,"Pamainų tvarkaraštis"]
[null,"Savaitė: ","Data"]
[null,"Skyriaus pavadinimas: ","Vardas"]
[]
[null,"PIRMADIENIS","7:00","8:00","9:00","10:00","11:00","12:00","13:00","14:00","15:00","Serga?","IŠ VISO"]
[null,"1 vardas","vadovas","vadovas","vadovas","vadovas","vadovas","vadovas","vadovas","vadovas","vadovas",null,{"$f":"COUNTIF(pirmadienis[[#This Row],[7:00]:[15:00]],\"*\")","v":9}]
[null,"2 vardas",null,"kasininkas","kasininkas","kasininkas","kasininkas",{"$nulls":5},{"$f":"COUNTIF(pirmadienis[[#This Row],[7:00]:[15:00]],\"*\")","v":4}]
[null,"3 vardas",null,"priimamasis","priimamasis","priimamasis","priimamasis ","priimamasis","priimamasis","priimamasis",null,null,{"$f":"COUNTIF(pirmadienis[[#This Row],[7:00]:[15:00]],\"*\")","v":7}]
[null,"4 vardas",null,"priimamasis","priimamasis","priimamasis","priimamasis ","priimamasis","priimamasis","priimamasis",null,null,{"$f":"COUNTIF(pirmadienis[[#This Row],[7:00]:[15:00]],\"*\")","v":7}]
[null,"5 vardas",{"$nulls":9},"Serga",{"$f":"COUNTIF(pirmadienis[[#This Row],[7:00]:[15:00]],\"*\")","v":0}]

{"sheet":"antradienis","index":1,"n_rows":10,"n_cols":13,"rows_kept":10,"merged":[[0,1,0,4],[1,2,1,4],[2,2,2,4]]}
[null,"Pamainų tvarkaraštis"]
[null,"Savaitė: ",{"$f":"pirmadienis!C2","v":"Data"}]
[null,"Skyriaus pavadinimas: ",{"$f":"pirmadienis!C3","v":"Vardas"}]
[]
[null,"ANTRADIENIS","7:00","8:00","9:00","10:00","11:00","12:00","13:00","14:00","15:00","Serga?","IŠ VISO"]
[null,"1 vardas","vadovas","vadovas","vadovas","vadovas","vadovas","vadovas","vadovas","vadovas","vadovas",null,{"$f":"COUNTIF(antradienis[[#This Row],[7:00]:[15:00]],\"*\")","v":9}]
[null,"2 vardas",null,"kasininkas","kasininkas","kasininkas","kasininkas",{"$nulls":5},{"$f":"COUNTIF(antradienis[[#This Row],[7:00]:[15:00]],\"*\")","v":4}]
[null,"3 vardas",null,"priimamasis","priimamasis","priimamasis","priimamasis ","priimamasis","priimamasis","priimamasis",null,null,{"$f":"COUNTIF(antradienis[[#This Row],[7:00]:[15:00]],\"*\")","v":7}]
[null,"4 vardas",null,"priimamasis","priimamasis","priimamasis","priimamasis ","priimamasis","priimamasis","priimamasis",null,null,{"$f":"COUNTIF(antradienis[[#This Row],[7:00]:[15:00]],\"*\")","v":7}]
[null,"5 vardas",{"$nulls":9},"Serga",{"$f":"COUNTIF(antradienis[[#This Row],[7:00]:[15:00]],\"*\")","v":0}]

{"sheet":"trečiadienis","index":2,"n_rows":10,"n_cols":13,"rows_kept":10,"merged":[[0,1,0,4],[1,2,1,4],[2,2,2,4]]}
[null,"Pamainų tvarkaraštis"]
[null,"Savaitė: ",{"$f":"pirmadienis!C2","v":"Data"}]
[null,"Skyriaus pavadinimas: ",{"$f":"pirmadienis!C3","v":"Vardas"}]
[]
[null,"TREČIADIENIS","7:00","8:00","9:00","10:00","11:00","12:00","13:00","14:00","15:00","Serga?","IŠ VISO"]
[null,"1 vardas","vadovas","vadovas","vadovas","vadovas","vadovas","vadovas","vadovas","vadovas","vadovas",null,{"$f":"COUNTIF(trečiadienis[[#This Row],[7:00]:[15:00]],\"*\")","v":9}]
[null,"2 vardas",null,"kasininkas","kasininkas","kasininkas","kasininkas",{"$nulls":5},{"$f":"COUNTIF(trečiadienis[[#This Row],[7:00]:[15:00]],\"*\")","v":4}]
[null,"3 vardas",null,"priimamasis","priimamasis","priimamasis","priimamasis ","priimamasis","priimamasis","priimamasis",null,null,{"$f":"COUNTIF(trečiadienis[[#This Row],[7:00]:[15:00]],\"*\")","v":7}]
[null,"4 vardas",null,"priimamasis","priimamasis","priimamasis","priimamasis ","priimamasis","priimamasis","priimamasis",null,null,{"$f":"COUNTIF(trečiadienis[[#This Row],[7:00]:[15:00]],\"*\")","v":7}]
[null,"5 vardas",{"$nulls":9},"Serga",{"$f":"COUNTIF(trečiadienis[[#This Row],[7:00]:[15:00]],\"*\")","v":0}]

{"sheet":"ketvirtadienis","index":3,"n_rows":10,"n_cols":13,"rows_kept":10,"merged":[[0,1,0,4],[1,2,1,4],[2,2,2,4]]}
[null,"Pamainų tvarkaraštis"]
[null,"Savaitė: ",{"$f":"pirmadienis!C2","v":"Data"}]
[null,"Skyriaus pavadinimas: ",{"$f":"pirmadienis!C3","v":"Vardas"}]
[]
[null,"KETVIRTADIENIS","7:00","8:00","9:00","10:00","11:00","12:00","13:00","14:00","15:00","Serga?","IŠ VISO"]
[null,"1 vardas","vadovas","vadovas","vadovas","vadovas","vadovas","vadovas","vadovas","vadovas","vadovas",null,{"$f":"COUNTIF(ketvirtadienis[[#This Row],[7:00]:[15:00]],\"*\")","v":9}]
[null,"2 vardas",null,"kasininkas","kasininkas","kasininkas","kasininkas",{"$nulls":5},{"$f":"COUNTIF(ketvirtadienis[[#This Row],[7:00]:[15:00]],\"*\")","v":4}]
[null,"3 vardas",null,"priimamasis","priimamasis","priimamasis","priimamasis ","priimamasis","priimamasis","priimamasis",null,null,{"$f":"COUNTIF(ketvirtadienis[[#This Row],[7:00]:[15:00]],\"*\")","v":7}]
[null,"4 vardas",null,"priimamasis","priimamasis","priimamasis","priimamasis ","priimamasis","priimamasis","priimamasis",null,null,{"$f":"COUNTIF(ketvirtadienis[[#This Row],[7:00]:[15:00]],\"*\")","v":7}]
[null,"5 vardas",{"$nulls":9},"Serga",{"$f":"COUNTIF(ketvirtadienis[[#This Row],[7:00]:[15:00]],\"*\")","v":0}]

{"sheet":"penktadienis","index":4,"n_rows":10,"n_cols":13,"rows_kept":10,"merged":[[0,1,0,4],[1,2,1,4],[2,2,2,4]]}
[null,"Pamainų tvarkaraštis"]
[null,"Savaitė: ",{"$f":"pirmadienis!C2","v":"Data"}]
[null,"Skyriaus pavadinimas: ",{"$f":"pirmadienis!C3","v":"Vardas"}]
[]
[null,"PENKTADIENIS","7:00","8:00","9:00","10:00","11:00","12:00","13:00","14:00","15:00","Serga?","IŠ VISO"]
[null,"1 vardas","vadovas","vadovas","vadovas","vadovas","vadovas","vadovas","vadovas","vadovas","vadovas",null,{"$f":"COUNTIF(penktadienis[[#This Row],[7:00]:[15:00]],\"*\")","v":9}]
[null,"2 vardas",null,"kasininkas","kasininkas","kasininkas","kasininkas",{"$nulls":5},{"$f":"COUNTIF(penktadienis[[#This Row],[7:00]:[15:00]],\"*\")","v":4}]
[null,"3 vardas",null,"priimamasis","priimamasis","priimamasis","priimamasis ","priimamasis","priimamasis","priimamasis",null,null,{"$f":"COUNTIF(penktadienis[[#This Row],[7:00]:[15:00]],\"*\")","v":7}]
[null,"4 vardas",null,"priimamasis","priimamasis","priimamasis","priimamasis ","priimamasis","priimamasis","priimamasis",null,null,{"$f":"COUNTIF(penktadienis[[#This Row],[7:00]:[15:00]],\"*\")","v":7}]
[null,"5 vardas",{"$nulls":9},"Serga",{"$f":"COUNTIF(penktadienis[[#This Row],[7:00]:[15:00]],\"*\")","v":0}]

{"sheet":"šeštadienis","index":5,"n_rows":10,"n_cols":13,"rows_kept":10,"merged":[[0,1,0,4],[1,2,1,4],[2,2,2,4]]}
[null,"Pamainų tvarkaraštis"]
[null,"Savaitė: ",{"$f":"pirmadienis!C2","v":"Data"}]
[null,"Skyriaus pavadinimas: ",{"$f":"pirmadienis!C3","v":"Vardas"}]
[]
[null,"ŠEŠTADIENIS","7:00","8:00","9:00","10:00","11:00","12:00","13:00","14:00","15:00","Serga?","IŠ VISO"]
[null,"1 vardas","vadovas","vadovas","vadovas","vadovas","vadovas","vadovas","vadovas","vadovas","vadovas",null,{"$f":"COUNTIF(šeštadienis[[#This Row],[7:00]:[15:00]],\"*\")","v":9}]
[null,"2 vardas",null,"kasininkas","kasininkas","kasininkas","kasininkas",{"$nulls":5},{"$f":"COUNTIF(šeštadienis[[#This Row],[7:00]:[15:00]],\"*\")","v":4}]
[null,"3 vardas",null,"priimamasis","priimamasis","priimamasis","priimamasis ","priimamasis","priimamasis","priimamasis",null,null,{"$f":"COUNTIF(šeštadienis[[#This Row],[7:00]:[15:00]],\"*\")","v":7}]
[null,"4 vardas",null,"priimamasis","priimamasis","priimamasis","priimamasis ","priimamasis","priimamasis","priimamasis",null,null,{"$f":"COUNTIF(šeštadienis[[#This Row],[7:00]:[15:00]],\"*\")","v":7}]
[null,"5 vardas",{"$nulls":9},"Serga",{"$f":"COUNTIF(šeštadienis[[#This Row],[7:00]:[15:00]],\"*\")","v":0}]

{"sheet":"sekmadienis","index":6,"n_rows":10,"n_cols":13,"rows_kept":10,"merged":[[0,1,0,4],[1,2,1,4],[2,2,2,4]]}
[null,"Pamainų tvarkaraštis"]
[null,"Savaitė: ",{"$f":"pirmadienis!C2","v":"Data"}]
[null,"Skyriaus pavadinimas: ",{"$f":"pirmadienis!C3","v":"Vardas"}]
[]
[null,"SEKMADIENIS","7:00","8:00","9:00","10:00","11:00","12:00","13:00","14:00","15:00","Serga?","IŠ VISO"]
[null,"1 vardas","vadovas","vadovas","vadovas","vadovas","vadovas","vadovas","vadovas","vadovas","vadovas",null,{"$f":"COUNTIF(sekmadienis[[#This Row],[7:00]:[15:00]],\"*\")","v":9}]
[null,"2 vardas",null,"kasininkas","kasininkas","kasininkas","kasininkas",{"$nulls":5},{"$f":"COUNTIF(sekmadienis[[#This Row],[7:00]:[15:00]],\"*\")","v":4}]
[null,"3 vardas",null,"priimamasis","priimamasis","priimamasis","priimamasis ","priimamasis","priimamasis","priimamasis",null,null,{"$f":"COUNTIF(sekmadienis[[#This Row],[7:00]:[15:00]],\"*\")","v":7}]
[null,"4 vardas",null,"priimamasis","priimamasis","priimamasis","priimamasis ","priimamasis","priimamasis","priimamasis",null,null,{"$f":"COUNTIF(sekmadienis[[#This Row],[7:00]:[15:00]],\"*\")","v":7}]
[null,"5 vardas",{"$nulls":9},"Serga",{"$f":"COUNTIF(sekmadienis[[#This Row],[7:00]:[15:00]],\"*\")","v":0}]